[Event "11th Festival Palmanova-A 2022"]
[Site "Strassoldo"]
[Date "2022.12.08"]
[Round "1.5"]
[White "Neuschmied, Siegfried"]
[Black "Piangerelli, Michele"]
[Result "1-0"]
[ECO "C44"]
[WhiteElo "2244"]
[BlackElo "2017"]
[Annotator "TA"]
[PlyCount "155"]
[EventDate "2022.12.08"]
[EventType "swiss"]
[EventCountry "ITA"]
[SourceTitle "playchess.com"]
[Source "ChessBase"]
[SourceQuality "1"]
[TimeControl "5400+30"]

{[%evp 13,155,-24,-10,-28,-13,-28,-24,-37,-45,-53,-41,-55,0,0,0,-14,6,21,58,0,0,-37,0,-86,-79,-80,0,0,0,-85,-83,-86,-79,-94,-86,-157,-153,-239,-117,-283,-113,-122,-124,-115,-114,-107,-112,-124,-91,-86,-81,-81,-83,-91,-77,-101,-87,-123,-101,-101,-83,-98,-62,-66,-62,-64,132,129,201,185,200,159,159,159,159,159,216,216,216,216,416,347,347,347,495,495,495,495,495,495,657,488,603,485,643,643,635,632,610,603,603,488,481,347,343,343,603,603,603,588,588,588,588,581,581,0,581,536,581,581,550,466,509,361,545,532,552,314,593,545,29972,29973,29976,29974,29974,29974,29974,29975,29975,29972,29970,29969,29958,4618]} 1. e4 {[%emt 0:00:02]} e5 {[%emt 0:02:23]} 2. Nf3 {[%emt 0:00:13]} Nf6 {[%emt 0:00:04]} 3. d3 {[%emt 0:03:32]} Nc6 {[%emt 0:00:12]} 4. Be2 {[%emt 0:01:41]} d5 {[%emt 0:00:43]} 5. Nbd2 {[%emt 0:00:24]} Bc5 {[%emt 0:02:56]} 6. O-O {[%emt 0:00:19]} O-O {[%emt 0:00:30]} 7. c3 {[%emt 0:00:18]} a5 {[%emt 0:02:00]} 8. h3 {[%emt 0:05:07] C44: Ponziani Opening and Scotch Gambit.} Ba7 {[%emt 0:08:05]} 9. Qc2 {[%emt 0:08:33]} Qe7 {[%emt 0:00:42] [#]} 10. b3 $146 {[%emt 0:04:40] Black has an edge.} ({Predecessor:} 10. exd5 Nxd5 11. Ne4 h6 12. Re1 f5 13. Ng3 Qd6 14. Bf1 Kh8 15. Qe2 Nf4 16. Bxf4 exf4 {0-1 (87) Sharma,D (2371)-Padmini,R (2352) New Delhi 2010}) 10... Rd8 {[%emt 0:11:08]} 11. Bb2 {[%emt 0:04:25]} Nh5 {[%emt 0:01:08]} 12. exd5 {[%emt 0:10:03]} Nf4 {[%emt 0:10:35]} ({Better is} 12... Rxd5 $15 13. d4 exd4) 13. dxc6 $11 {[%emt 0:02:34]} Nxe2+ {[%emt 0:00:05]} 14. Kh1 {[%emt 0:01:26]} Nf4 {[%emt 0:00:12]} 15. d4 {[%emt 0:01:16]} bxc6 {[%emt 0:21:14]} 16. Rae1 {[%emt 0:07:17]} (16. dxe5 Rd3 17. g3 Bxh3 18. gxf4 Bxf1 19. Rxf1 Rad8 $17) (16. Nxe5 $14 Qg5 17. Qe4 (17. Nxc6 $2 Qxg2#)) 16... f6 {[%emt 0:04:01]} 17. Nc4 {[%emt 0:04:40]} Qf7 {[%emt 0:04:36]} 18. Ng1 {[%emt 0:17:18]} (18. Nxa5 $2 Qd5 19. c4 Qxa5 $17) (18. dxe5 $11 Rd3 19. Bc1 (19. Nxa5 $2 Bxh3 20. Rg1 Qd5 $19) 19... Rxf3 20. gxf3) 18... exd4 {[%emt 0:06:45]} (18... Qd5 $6 19. Ne3 Qf7 20. dxe5 $15) 19. cxd4 {[%emt 0:03:26]} Qh5 {[%emt 0:07:21]} (19... Bxd4 $6 20. Rd1 Qd5 21. Ne3 $11) (19... Qd5 $6 20. Ne3 Qb5 21. Ne2 $11) (19... a4 $17) 20. Qe4 {[%emt 0:05:06][%csl LRc6,LRf4]} Nd5 $40 {[%emt 0:08:29][%mdl 128] Black attacks.} 21. Rd1 {[%emt 0:07:42]} (21. Nxa5 $11 Bf5 22. Qe2 Qxe2 23. Nxe2) 21... Bf5 $17 {[%emt 0:02:47]} 22. Qf3 {[%emt 0:00:18]} Qxf3 {[%emt 0:02:39]} 23. Nxf3 {[%emt 0:00:03]} a4 {[%emt 0:00:13]} 24. Na5 {[%emt 0:02:16]} (24. bxa4 $142 Rdb8 25. a3) 24... Bb6 {[%emt 0:02:47]} 25. Nh4 {[%emt 0:02:16]} (25. Nxc6 $2 {loses.} Rd6 26. Nce5 axb3 27. axb3 fxe5 28. dxe5 Rdd8 $19) (25. Nc4 $17) 25... Bc2 {[%emt 0:00:46]} (25... a3 $19 {has better winning chances.} 26. Ba1 Bxa5 27. Nxf5 Re8) 26. Rc1 $2 {[%emt 0:00:55]} (26. Rd2 $17 Rxa5 27. Rxc2) 26... Rxa5 $2 {[%emt 0:00:25]} (26... Bd3 $19 {is more deadly.} 27. Nxc6 Bxf1 28. Nxd8 a3 29. Bxa3 Bd3) 27. Rxc2 {[%emt 0:00:41]} axb3 {[%emt 0:00:25]} 28. axb3 {[%emt 0:00:02]} Rb5 {[%emt 0:00:09][%cal Ba5b5,Bb5b3,Bb3d3][%mdl 32]} 29. Rxc6 {[%emt 0:02:18]} Rxb3 {[%emt 0:00:01]} 30. Ba1 {[%emt 0:00:26]} Rd3 {[%emt 0:00:16]} 31. Nf3 {[%emt 0:00:17]} Re8 {[%emt 0:00:32]} 32. Rc2 {[%emt 0:00:44] Against Re2} Kf7 {[%emt 0:00:34]} 33. Rb1 {[%emt 0:00:21]} Ra8 {[%emt 0:00:18]} 34. Kg1 {[%emt 0:00:34]} Rda3 {[%emt 0:00:11]} 35. Rcc1 {[%emt 0:01:11][%cal Bc2c1,Bc1d1,Bd1b1][%mdl 32]} R8a4 {[%emt 0:00:26]} 36. Kf1 {[%emt 0:00:14]} Nf4 {[%emt 0:00:33][%cal Of4h3]} 37. Rd1 {[%emt 0:00:40]} Nxh3 {[%emt 0:00:28]} 38. Bb2 {[%emt 0:00:32][%cal Ob2a3]} Rb3 {[%emt 0:02:19][%cal Oa4b4] ...Rab4! is the strong threat.} 39. Nd2 {[%emt 0:00:02][%mdl 64] [#] Deflection} Rbb4 {[%emt 0:00:08]} (39... Rxb2 $1 $15 40. Rxb2 {[#]} Nxf2 $1) 40. gxh3 $16 {[%emt 0:00:23]} Ra2 {[%emt 0:00:05]} (40... Bxd4 $16 {was necessary.} 41. Bxd4 Rxd4) 41. Bc3 $18 {[%emt 0:00:17]} Rxb1 {[%emt 0:00:24]} 42. Rxb1 {[%emt 0:00:11]} Bxd4 {[%emt 0:00:20]} 43. Bxd4 {[%emt 0:01:04]} Rxd2 {[%emt 0:00:01][%mdl 4096] Endgame KRB-KR} 44. Be3 {[%emt 0:00:07]} Rd7 {[%emt 0:00:22]} (44... Rc2 $16 {was worth a try.} 45. Rb4 h6) 45. Rc1 {[%emt 0:00:11]} g5 {[%emt 0:00:16]} 46. Rc6 {[%emt 0:00:20]} h5 $2 {[%emt 0:00:19]} (46... Kg6 47. Bc1 h6) 47. Bc1 {[%emt 0:00:51]} Kg6 {[%emt 0:01:50]} 48. Bb2 {[%emt 0:00:13]} Rf7 {[%emt 0:00:01]} (48... Rd6 $142 49. Rxc7 Rb6) 49. Be5 {[%emt 0:00:36]} Kf5 {[%emt 0:00:52]} 50. Bxc7 {[%emt 0:00:04]} ({Not} 50. Rxc7 Rf8 $18) 50... Rd7 {[%emt 0:00:32]} 51. Kg2 {[%emt 0:01:17]} Rd5 {[%emt 0:01:04]} 52. Bb6 {[%emt 0:00:36] aiming for Rc5.} Rd3 {[%emt 0:00:19]} 53. Be3 {[%emt 0:01:16]} Rd1 {[%emt 0:00:48]} 54. Bc1 {[%emt 0:01:15]} Rd7 {[%emt 0:00:14]} 55. Bb2 {[%emt 0:00:12]} Rf7 {[%emt 0:00:01]} 56. Rc5+ {[%emt 0:01:00]} Kg6 {[%emt 0:00:20]} 57. Kg3 {[%emt 0:00:18]} Rb7 {[%emt 0:00:15]} 58. Bd4 {[%emt 0:00:28] And now Rc6 would win.} Rd7 {[%emt 0:00:17]} 59. Be3 {[%emt 0:00:37] Black must now prevent h4.} Rd3 $2 {[%emt 0:00:38]} (59... h4+ 60. Kg4 Re7) 60. h4 {[%emt 0:00:19]} gxh4+ {[%emt 0:01:07]} 61. Kxh4 {[%emt 0:00:03]} Rd1 {[%emt 0:00:08]} 62. Rc1 {[%emt 0:00:32]} (62. Rxh5 $2 {is the wrong capture.} Rh1+ 63. Kg3 Rxh5 $19) 62... Rd5 {[%emt 0:00:28]} 63. Rg1+ {[%emt 0:00:14]} Kf7 {[%emt 0:01:09]} 64. Rc1 {[%emt 0:00:06]} Kg6 $1 {[%emt 0:00:23]} 65. Rc8 {[%emt 0:00:02]} Rd1 {[%emt 0:00:25]} 66. Rg8+ {[%emt 0:00:43]} Kf7 {[%emt 0:00:52]} 67. Rh8 {[%emt 0:00:05]} Rh1+ {[%emt 0:00:22]} 68. Kg3 {[%emt 0:00:03]} Kg7 {[%emt 0:00:24]} (68... Kg6 {keeps fighting.} 69. Rh6+ Kf5) 69. Rd8 {[%emt 0:00:26]} Kg6 {[%emt 0:00:59]} 70. Rd6 {[%emt 0:00:04]} Kf7 $2 {[%emt 0:00:37]} (70... Rg1+ 71. Kf3 Kf7) 71. Bd4 {[%emt 0:00:09]} Rd1 {[%emt 0:00:29]} 72. Rxf6+ {[%emt 0:00:17] White mates.} Kg7 {[%emt 0:00:25]} 73. Rd6+ {[%emt 0:00:58]} Kf7 {[%emt 0:00:18]} 74. Be5 {[%emt 0:00:16]} Re1 {[%emt 0:00:10]} 75. f4 {[%emt 0:00:19]} Rg1+ {[%emt 0:00:09]} 76. Kh2 {[%emt 0:01:45]} Rc1 {[%emt 0:00:37]} 77. Rh6 {[%emt 0:00:05]} Rc2+ {[%emt 0:00:03]} 78. Kg3 {[%emt 0:00:19] Weighted Error Value: White=0.29 (precise) /Black=0.37} (78. Kh3 $142 Ra2 79. Kh4 Kg8 80. Kxh5 Kf7 81. Kg5 Ke8 82. f5 Rg2+ 83. Kf6) 1-0

[Event "11th Festival Palmanova-A 2022"]
[Site "Strassoldo"]
[Date "2022.12.08"]
[Round "1.6"]
[White "Vincenti, Leonardo"]
[Black "Loiacono, Leonardo"]
[Result "0-1"]
[ECO "B06"]
[WhiteElo "1910"]
[BlackElo "2271"]
[Annotator "TA"]
[PlyCount "120"]
[EventDate "2022.12.08"]
[EventType "swiss"]
[EventCountry "ITA"]
[SourceTitle "playchess.com"]
[Source "ChessBase"]
[SourceQuality "1"]
[TimeControl "5400+30"]

{[%evp 13,120,16,9,17,31,29,27,0,0,0,0,-13,6,0,0,0,0,0,0,0,0,-25,-14,-67,-75,-139,-133,-141,-139,-125,-131,-153,-105,-181,-138,-171,-128,-116,-111,-119,-87,-140,-131,-123,-58,-51,-55,-72,0,-8,0,0,0,-12,-13,-39,-28,-39,-32,-51,-22,-29,-29,-33,-39,-31,0,-106,-86,-147,-139,-212,-192,-208,-208,-217,-221,-389,-400,-390,-355,-403,-395,-395,-372,-368,-355,-446,-442,-425,-419,-543,-531,-608,-613,-700,-712,-714,-716,-2132,-1910,-5002,-5477,-5022,-4922,-2772,-2307,-1260,-949]} 1. e4 {[%emt 0:00:02]} g6 {[%emt 0:00:08]} 2. d4 {[%emt 0:00:06]} Bg7 {[%emt 0:00:13]} 3. Nc3 {[%emt 0:00:07]} d6 {[%emt 0:00:11]} 4. Be3 {[%emt 0:00:14]} c6 {[%emt 0:00:59]} 5. Qd2 {[%emt 0:01:37]} b5 {[%emt 0:01:17]} 6. f3 {[%emt 0:01:09]} Nd7 {[%emt 0:08:21]} 7. h4 {[%emt 0:02:42]} h5 {[%emt 0:03:16]} 8. O-O-O {[%emt 0:03:20] B06: Modern Defence.} Qa5 {[%emt 0:06:27]} 9. Kb1 {[%emt 0:00:56]} Nb6 {[%emt 0:02:43]} 10. Nce2 {[%emt 0:15:01][%cal Bc3e2,Be2f4,Bf4d3][%mdl 32] [#] White has an edge.} Qxd2 $146 {[%emt 0:13:29]} ({Predecessor:} 10... Qa6 11. Nf4 Nc4 12. Bxc4 bxc4 13. Qb4 Qb5 14. Qxb5 cxb5 15. Ngh3 e6 16. Ng5 Ne7 {0-1 (31) Paramzina,A (2166)-Al Huwar,J (2275) Warsaw 2017}) 11. Bxd2 {[%emt 0:00:08]} a5 {[%emt 0:00:34]} 12. b3 {[%emt 0:04:04]} b4 {[%emt 0:02:45]} 13. Nh3 {[%emt 0:10:23]} Nf6 {[%emt 0:03:35]} 14. Be3 {[%emt 0:03:08]} Nfd7 {[%emt 0:01:11]} 15. Nef4 {[%emt 0:03:26]} Ba6 {[%emt 0:13:51]} 16. Bxa6 {[%emt 0:10:32]} Rxa6 {[%emt 0:00:03][%cal Ba8a6,Ba6b6,Bb6b7][%mdl 32]} 17. Nd3 {[%emt 0:00:34]} Na8 {[%emt 0:02:35]} 18. Ng5 {[%emt 0:06:08]} (18. Nhf4 $11) 18... Nc7 $15 {[%emt 0:01:43]} 19. c4 {[%emt 0:02:45] Prevents Nb5.} (19. a4 $142) 19... bxc3 $17 {[%emt 0:00:21]} 20. a4 {[%emt 0:00:07]} Rb6 {[%emt 0:03:13]} 21. Kc2 {[%emt 0:00:27]} O-O {[%emt 0:06:53]} 22. g4 {[%emt 0:03:14]} Nf6 {[%emt 0:03:14]} ({Better is} 22... hxg4 {aiming for ...f6.} 23. fxg4 f6) 23. Rhg1 {[%emt 0:11:24]} (23. gxh5 $17 Nxh5 24. Rb1) 23... Rfb8 {[%emt 0:03:04]} 24. Rb1 {[%emt 0:00:08]} R6b7 {[%emt 0:05:35]} 25. gxh5 {[%emt 0:01:27]} Nxh5 {[%emt 0:00:04]} 26. f4 {[%emt 0:01:24]} Na6 {[%emt 0:02:53]} 27. f5 {[%emt 0:02:29]} (27. e5 $142) 27... gxf5 {[%emt 0:02:15]} 28. exf5 {[%emt 0:00:21]} Nb4+ {[%emt 0:00:17]} ({Black should try} 28... Nf6 $17 29. Bf2 Nb4+ 30. Nxb4 Rxb4) 29. Nxb4 $1 $15 {[%emt 0:00:58]} Rxb4 {[%emt 0:00:03]} 30. Nf3 {[%emt 0:02:09]} f6 {[%emt 0:02:55] Against Rg5} (30... Kf8 $17) 31. Ne1 {[%emt 0:02:52]} Kf7 {[%emt 0:03:36]} 32. Nd3 {[%emt 0:00:09]} R4b7 {[%emt 0:00:05]} 33. Rg4 {[%emt 0:03:50]} Rh8 {[%emt 0:00:46]} 34. Rbg1 {[%emt 0:01:59]} Bh6 {[%emt 0:00:53] Dancing on a razor blade.} 35. Bxh6 {[%emt 0:00:09]} Rxh6 {[%emt 0:00:02]} 36. Kxc3 {[%emt 0:00:45]} Rh7 {[%emt 0:02:17]} 37. b4 {[%emt 0:05:18]} Ng7 {[%emt 0:01:11]} 38. Rf1 {[%emt 0:00:17]} Rh5 {[%emt 0:01:25]} 39. Rgf4 {[%emt 0:00:07]} Rh8 {[%emt 0:00:14]} 40. Rb1 {[%emt 0:02:11]} (40. bxa5 $11 {keeps the balance.} Ra7 41. Nb4) 40... axb4+ $17 {[%emt 0:01:48] Black keeps a firm grip on the game.} 41. Rxb4 {[%emt 0:00:15] [#]} (41. Kb3 $142) 41... Ra7 $1 {[%emt 0:00:06]} 42. Nb2 {[%emt 0:00:18]} (42. Kb3 $17 {was necessary.}) 42... Rh5 $19 {[%emt 0:00:53]} 43. Rc4 {[%emt 0:01:27]} Ra6 {[%emt 0:00:13]} ({Inferior is} 43... Rxf5 44. Rxf5 Nxf5 45. Rxc6 $17) 44. Nd3 {[%emt 0:00:14]} Nxf5 {[%emt 0:00:31]} ({Weaker is} 44... Rxf5 45. Kb3) 45. Kb3 $2 {[%emt 0:00:30]} (45. Rf3) 45... Ne3 {[%emt 0:02:42]} ({Worse is} 45... Nxh4 46. Nb4 Rb6 47. Rxc6 $17) 46. Rc1 {[%emt 0:00:34]} Nd5 {[%emt 0:00:38]} 47. Rg4 {[%emt 0:00:40]} f5 {[%emt 0:00:21]} 48. Rg5 {[%emt 0:00:20]} Rxh4 {[%emt 0:00:30]} 49. Rxf5+ {[%emt 0:00:03]} Ke6 {[%emt 0:00:19]} 50. Rf2 {[%emt 0:01:08]} Rxd4 {[%emt 0:00:18]} 51. Nb2 {[%emt 0:00:40]} Rb4+ {[%emt 0:00:49]} 52. Ka3 {[%emt 0:00:05]} c5 {[%emt 0:00:54] Hoping for ...Nb6. Black is clearly winning.} 53. Rc4 {[%emt 0:00:31] [#]} Raxa4+ {[%emt 0:00:39][%mdl 512]} 54. Nxa4 {[%emt 0:00:07] Rxb4 is the strong threat.} Rxc4 {[%emt 0:00:03][%mdl 4096] Endgame KRN-KRN} 55. Re2+ {[%emt 0:00:14]} Kd7 {[%emt 0:00:28][%cal Oc4a4] ( -> ...Rxa4+!)} 56. Rd2 {[%emt 0:00:15]} Kc6 {[%emt 0:00:15] Threatens to win with ...e5.} 57. Nb2 {[%emt 0:00:28]} Rc3+ {[%emt 0:00:12]} 58. Ka2 {[%emt 0:00:04]} Nb4+ {[%emt 0:00:34]} 59. Kb1 {[%emt 0:00:06]} Rb3 {[%emt 0:00:08]} 60. Kc1 {[%emt 0:00:11] Against c4} e5 {[%emt 0:00:43] Weighted Error Value: White=0.40/Black=0.11 (very precise)} 0-1

[Event "11th Festival Palmanova-A 2022"]
[Site "Strassoldo"]
[Date "2022.12.08"]
[Round "1.7"]
[White "Titze, Leo"]
[Black "Capaliku, Aleks"]
[Result "1/2-1/2"]
[ECO "C67"]
[WhiteElo "2252"]
[BlackElo "2030"]
[Annotator "TA"]
[PlyCount "121"]
[EventDate "2022.12.08"]
[EventType "swiss"]
[EventCountry "ITA"]
[SourceTitle "playchess.com"]
[Source "ChessBase"]
[SourceQuality "1"]
[TimeControl "5400+30"]

{[%evp 18,121,23,17,20,19,20,12,32,15,15,15,15,14,14,14,10,8,6,0,0,0,0,0,0,0,4,0,0,0,0,0,0,0,6,0,6,0,0,0,0,0,0,0,7,0,9,0,8,0,33,33,33,33,33,34,48,25,25,25,25,25,31,25,38,38,38,38,38,38,47,-224,-216,-212,-190,-208,-206,-195,-166,-462,-450,-544,-541,-540,-510,-394,-64,-64,0,0,0,-8,0,0,0,0,0,-8,0,0,0,0,0,0,8,-29985]} 1. e4 {[%emt 0:00:20]} e5 {[%emt 0:00:22]} 2. Nf3 {[%emt 0:00:15]} Nc6 {[%emt 0:00:07]} 3. Bb5 {[%emt 0:00:36]} Nf6 {[%emt 0:00:10]} 4. O-O {[%emt 0:02:31][%cal Bh1f1,Bf1e1,Be1e5][%mdl 32]} Nxe4 {[%emt 0:00:17]} 5. Re1 {[%emt 0:02:03]} Nd6 {[%emt 0:00:41]} 6. Nxe5 {[%emt 0:01:56]} Nxe5 {[%emt 0:00:35]} 7. Rxe5+ {[%emt 0:00:02]} Be7 {[%emt 0:00:13]} 8. Bf1 {[%emt 0:05:22]} O-O {[%emt 0:00:08]} 9. d4 {[%emt 0:03:53]} Bf6 {[%emt 0:00:26]} 10. Re1 {[%emt 0:00:29]} Re8 {[%emt 0:00:08] C67: Ruy Lopez: Berlin Defence: 4 0-0 Nxe4.} 11. c3 {[%emt 0:01:13]} c6 {[%emt 0:11:06]} 12. Bd3 {[%emt 0:04:37]} g6 {[%emt 0:03:14]} 13. Bf4 {[%emt 0:01:44]} Rxe1+ {[%emt 0:00:19]} 14. Qxe1 {[%emt 0:00:02]} Ne8 {[%emt 0:01:02]} 15. Nd2 {[%emt 0:05:57][%cal Bb1d2,Bd2f3,Bf3e5][%mdl 32]} d5 {[%emt 0:00:43]} 16. Nf3 {[%emt 0:01:41]} Ng7 {[%emt 0:01:23]} 17. Qd2 {[%emt 0:04:10]} Bf5 {[%emt 0:03:19]} 18. Re1 {[%emt 0:07:14]} Bxd3 {[%emt 0:10:03]} 19. Qxd3 {[%emt 0:00:37]} Qd7 {[%emt 0:23:31]} 20. Be5 {[%emt 0:05:21]} Bxe5 {[%emt 0:02:55]} 21. Nxe5 {[%emt 0:03:33] [#]} Re8 $146 {[%emt 0:03:42]} ({Predecessor:} 21... Qf5 22. Qxf5 Nxf5 23. Nd3 Kf8 24. Nc5 Nd6 25. Nd7+ Kg7 26. Nc5 Kf8 27. Nd7+ {½-½ (27) Nepomniachtchi,I (2792)-Grischuk,A (2778) Moscow 2021}) 22. g4 {[%emt 0:24:10]} Qd6 {[%emt 0:04:24]} 23. Qd2 {[%emt 0:04:52]} f6 {[%emt 0:01:43]} 24. Nd3 {[%emt 0:00:16]} Rxe1+ {[%emt 0:01:22]} 25. Qxe1 $11 {[%emt 0:00:02][%mdl 4096] Endgame KQN-KQN} Ne6 {[%emt 0:08:59]} 26. Qe3 {[%emt 0:03:07]} Kg7 {[%emt 0:01:36]} 27. f4 {[%emt 0:05:26]} b6 {[%emt 0:04:23]} 28. h4 {[%emt 0:04:05]} c5 {[%emt 0:02:54]} 29. f5 {[%emt 0:01:33] Prevents c4.} cxd4 {[%emt 0:04:32]} 30. cxd4 {[%emt 0:00:05]} (30. Qxe6 $5 Qg3+ $8 31. Kf1 (31. Kh1 Qh3+ 32. Kg1 Qxd3 $11) 31... Qxd3+ 32. Kf2 $11) 30... Nc7 {[%emt 0:02:01]} 31. a3 {[%emt 0:03:06]} Qd7 {[%emt 0:01:43]} 32. Nf4 {[%emt 0:02:01]} Kf7 {[%emt 0:05:03]} 33. Qd3 {[%emt 0:02:21][%cal Rf5g6]} (33. fxg6+ {simplifies} hxg6 34. Qf3 Qb5 35. h5) 33... g5 {[%emt 0:02:53]} (33... Kf8 {simplifies} 34. Kf2 gxf5 35. Qxf5 Qxf5 36. gxf5 Ke7) 34. hxg5 {[%emt 0:00:45]} fxg5 {[%emt 0:00:02]} 35. Nh3 {[%emt 0:01:49]} (35. Nh5 {is interesting.} Qb5 36. Qd2 Qe8 37. Qc1) 35... h6 {[%emt 0:00:11]} 36. Nf2 {[%emt 0:00:18]} (36. Qe3 {looks sharper.} Ne8 37. Nf2 Nf6 38. Kg2) 36... Ne8 {[%emt 0:01:24]} 37. Qh3 {[%emt 0:00:49]} Kg7 {[%emt 0:00:20]} 38. Qe3 {[%emt 0:00:31]} Nf6 {[%emt 0:00:18]} 39. Qe5 {[%emt 0:00:22]} Qe8 {[%emt 0:00:21]} 40. Kg2 {[%emt 0:00:37]} h5 {[%emt 0:01:08]} 41. gxh5 {[%emt 0:01:09]} Qxh5 {[%emt 0:00:02]} 42. Qe7+ {[%emt 0:00:00]} Qf7 {[%emt 0:00:03]} 43. Qe3 {[%emt 0:00:23]} Kh6 {[%emt 0:00:59]} 44. Nh3 $2 {[%emt 0:00:35][%mdl 8192] [#]} (44. a4 $14 {stays ahead.}) 44... Ne4 $19 {[%emt 0:00:40]} 45. Qf3 {[%emt 0:01:02]} Qf6 {[%emt 0:00:53]} 46. Nf2 {[%emt 0:00:00]} Qxd4 {[%emt 0:00:31]} 47. Ng4+ {[%emt 0:00:19]} Kh7 {[%emt 0:00:37]} 48. f6 $2 {[%emt 0:00:39]} (48. b4 {is a better defense.}) 48... Qxb2+ {[%emt 0:00:24]} ({Don't blunder} 48... Kg8 $2 49. b4 $19) 49. Kh3 {[%emt 0:00:31] f7 would kill now.} Qc3 {[%emt 0:00:17] Against f7} 50. Qxc3 {[%emt 0:00:23]} Nxc3 {[%emt 0:00:01] KN-KN} 51. Ne5 {[%emt 0:00:01] [#]} Ne4 $2 {[%emt 0:00:46]} (51... d4 $1 $19 {[%cal Od4d3] White must now prevent ...d3!} 52. Kg4 d3 53. Nxd3 Kg6) 52. Kg4 $15 {[%emt 0:00:14]} Nxf6+ {[%emt 0:00:14]} (52... d4 $1 $15 53. Kf5 Nc5 54. Kxg5 d3) 53. Kxg5 $11 {[%emt 0:00:02] The position is equal.} Kg7 {[%emt 0:01:12]} 54. Kf5 {[%emt 0:00:01]} Ne4 {[%emt 0:00:35]} 55. Ke6 {[%emt 0:00:08]} Nc3 {[%emt 0:00:09]} (55... d4 $5) 56. Nc6 {[%emt 0:00:08] Prevents d4.} a5 {[%emt 0:00:27]} 57. Nd4 {[%emt 0:00:49]} b5 {[%emt 0:00:05]} 58. Nc2 {[%emt 0:00:10]} Kg6 {[%emt 0:00:58]} 59. Ke5 {[%emt 0:00:15]} Nb1 {[%emt 0:00:44]} 60. Kxd5 {[%emt 0:00:12]} Nxa3 {[%emt 0:01:12]} 61. Kd4 $2 {[%emt 0:04:08][%mdl 40960] Weighted Error Value: White=0.29 (precise) /Black=0.12 (very precise) . An unexpected result.} 1/2-1/2

[Event "11th Festival Palmanova-A 2022"]
[Site "Strassoldo"]
[Date "2022.12.08"]
[Round "1.8"]
[White "Kalosha, Zhiulien Oleksii"]
[Black "Ceschia, Ivano"]
[Result "0-1"]
[ECO "B33"]
[WhiteElo "2092"]
[BlackElo "2217"]
[Annotator "TA"]
[PlyCount "70"]
[EventDate "2022.12.08"]
[EventType "swiss"]
[EventCountry "ITA"]
[SourceTitle "playchess.com"]
[Source "ChessBase"]
[SourceQuality "1"]
[TimeControl "5400+30"]

{[%evp 16,70,50,25,54,5,49,52,41,33,44,41,42,26,39,24,44,27,36,11,47,50,47,17,72,0,0,-30,-64,-120,-10,-32,-28,-22,-33,-29,-40,-40,-37,-45,-27,-214,-218,-220,-201,-242,-245,-253,-193,-197,-160,-158,-163,-295,-292,-29996,-29997]} 1. e4 {[%emt 0:00:06]} c5 {[%emt 0:00:07]} 2. Nf3 {[%emt 0:00:09]} Nc6 {[%emt 0:00:10]} 3. d4 {[%emt 0:00:12]} cxd4 {[%emt 0:00:05]} 4. Nxd4 {[%emt 0:00:10]} Qb6 {[%emt 0:01:57]} 5. Nb3 {[%emt 0:01:42]} Nf6 {[%emt 0:00:07]} 6. Nc3 {[%emt 0:00:40]} e6 {[%emt 0:00:18]} 7. Be3 {[%emt 0:02:04]} Qc7 {[%emt 0:00:33]} 8. a3 {[%emt 0:10:29]} a6 {[%emt 0:03:28]} 9. Be2 {[%emt 0:12:10]} d6 {[%emt 0:14:36] B33: Sicilian: Pelikan and Sveshnikov Variations.} 10. O-O {[%emt 0:09:59]} (10. g4 $14 {is more appropriate.}) 10... Bd7 {[%emt 0:12:41]} 11. f4 {[%emt 0:03:51] [#]} Be7 $146 {[%emt 0:12:19] White is slightly better.} ({Predecessor:} 11... b5 12. Qd3 Rd8 13. Rad1 Be7 14. Rd2 Bc8 15. Rfd1 O-O 16. Bf3 Bb7 17. f5 Ne5 18. Qd4 exf5 19. Nd5 Nxd5 20. exd5 Bf6 21. Qb6 Nc4 22. Qxc7 {1-0 (22) Gee,G (1209)-Popp,T (1339) IECC email 2000}) 12. Bf3 {[%emt 0:05:25]} Na5 {[%emt 0:05:10]} 13. Nxa5 {[%emt 0:04:23]} Qxa5 {[%emt 0:00:06]} 14. Qe1 {[%emt 0:06:44]} Bc6 {[%emt 0:09:48]} 15. Qf2 {[%emt 0:05:38] Bb6 is the strong threat.} Nd7 {[%emt 0:00:22] Against Bb6} 16. Rad1 {[%emt 0:02:13]} Rc8 {[%emt 0:05:58]} 17. g4 {[%emt 0:18:32][%cal Bg2g4,Bg4g5][%mdl 32]} Qc7 {[%emt 0:01:16]} 18. g5 {[%emt 0:02:40]} O-O {[%emt 0:04:20]} 19. Bg4 {[%emt 0:07:34]} Nc5 {[%emt 0:04:06] [#]} (19... Rce8 $11) 20. Bf3 {[%emt 0:04:00]} (20. f5 $1 $16 {[%cal Rf5f6]}) 20... f5 {[%emt 0:01:56]} 21. gxf6 {[%emt 0:00:22]} Bxf6 {[%emt 0:00:21]} 22. Qg2 {[%emt 0:01:29]} (22. Bd4 $15) 22... Na4 {[%emt 0:02:09]} (22... Bxc3 $17 23. bxc3 Rf6) 23. Bg4 {[%emt 0:00:50]} Rce8 {[%emt 0:00:40]} 24. Nxa4 {[%emt 0:00:16]} Bxa4 {[%emt 0:00:05]} 25. b3 {[%emt 0:00:25]} Bc6 {[%emt 0:00:22]} 26. Bf3 {[%emt 0:00:33]} b5 {[%emt 0:00:52]} 27. Kh1 {[%emt 0:00:46]} Bb2 {[%emt 0:00:55]} (27... Bc3 {feels hotter.} 28. Rg1 a5 29. Rd3 b4) 28. Bc1 $2 {[%emt 0:00:33] White does not recover from this.} (28. b4 $11 Bxa3 29. c3) 28... Bxc1 $19 {[%emt 0:00:10]} 29. Rxc1 {[%emt 0:00:15]} Rxf4 {[%emt 0:00:10]} 30. Rce1 {[%emt 0:00:40]} Ref8 {[%emt 0:01:36][%cal Be8f8,Bf8f4,Bf4f2][%mdl 32] Hoping for ...Qf7.} 31. Qh3 {[%emt 0:00:07]} Qf7 {[%emt 0:00:28][%cal Rf4f3]} 32. Bg2 {[%emt 0:00:25]} Qg6 {[%emt 0:01:46] Strongly threatening ...Rxf1+.} 33. Rxf4 {[%emt 0:00:13]} Rxf4 {[%emt 0:00:03]} 34. Qc3 {[%emt 0:00:40]} (34. Qe3 {was called for.} Rg4 35. Bf3) 34... Rf2 $1 {[%emt 0:01:12][%csl Gf2][%cal Rg6g2]} ({Don't take} 34... Bxe4 35. Bxe4 Qe8 36. Qd3 $18) 35. Rg1 {[%emt 0:01:03] [#]} (35. Bf3 $19 Qf6 36. Qxf6 gxf6 37. Bd1) 35... Qxg2+ $3 {[%emt 0:00:20][%mdl 512] Weighted Error Value: White=0.57/Black=0.25 (precise)} 0-1